[Event "Titled Tuesday Blitz October 18 Late 2022"]
[White "Hansen, Eric"]
[Black "Vlassov, Nikolai"]
[WhiteFideId "2606771"]
[BlackFideId "4103360"]
[WhiteElo "2568"]
[BlackElo "2324"]
[Result "1-0"]
[Round "04"]
[TimeControl "180+1"]
[Date "2022.10.18"]
[WhiteClock "0:00:10"]
[BlackClock "0:00:35"]

1. c4 {[%clk 0:03:00]}  e5 {[%clk 0:02:59]} 2. Nc3 {[%clk 0:03:00]}  Nf6 {[%clk 0:02:59]} 3. Nf3 {[%clk 0:02:59]}  Nc6 {[%clk 0:02:59]} 4. e3 {[%clk 0:02:54]}  Bb4 {[%clk 0:02:58]} 5. Qc2 {[%clk 0:02:53]}  O-O {[%clk 0:02:57]} 6. a3 {[%clk 0:02:53]}  Bxc3 {[%clk 0:02:57]} 7. Qxc3 {[%clk 0:02:54]}  Re8 {[%clk 0:02:56]} 8. d3 {[%clk 0:02:54]}  d5 {[%clk 0:02:56]} 9. cxd5 {[%clk 0:02:54]}  Nxd5 {[%clk 0:02:56]} 10. Qc2 {[%clk 0:02:54]}  Bg4 {[%clk 0:02:55]} 11. Be2 {[%clk 0:02:55]}  Qd7 {[%clk 0:02:53]} 12. O-O {[%clk 0:02:50]}  Rad8 {[%clk 0:02:53]} 13. b4 {[%clk 0:02:41]}  a6 {[%clk 0:02:51]} 14. Bb2 {[%clk 0:02:40]}  Kh8 {[%clk 0:02:47]} 15. h3 {[%clk 0:02:26]}  Bh5 {[%clk 0:02:36]} 16. Rad1 {[%clk 0:02:19]}  f5 {[%clk 0:02:31]} 17. Nxe5 {[%clk 0:02:15]}  Nxe5 {[%clk 0:02:17]} 18. Bxh5 {[%clk 0:02:15]}  Re6 {[%clk 0:02:17]} 19. Rfe1 {[%clk 0:02:01]}  Ng6 {[%clk 0:02:00]} 20. Bxg6 {[%clk 0:01:45]}  Rxg6 {[%clk 0:01:59]} 21. f4 {[%clk 0:01:46]}  Qe6 {[%clk 0:01:45]} 22. Be5 {[%clk 0:01:45]}  c6 {[%clk 0:01:45]} 23. e4 {[%clk 0:01:20]}  Ne7 {[%clk 0:01:44]} 24. Kh2 {[%clk 0:01:05]}  h6 {[%clk 0:01:43]} 25. Rd2 {[%clk 0:00:50]}  Kh7 {[%clk 0:01:42]} 26. Rde2 {[%clk 0:00:51]}  Qd7 {[%clk 0:01:31]} 27. Re3 {[%clk 0:00:48]}  Nc8 {[%clk 0:01:21]} 28. d4 {[%clk 0:00:46]}  Rf8 {[%clk 0:01:10]} 29. exf5 {[%clk 0:00:30]}  Qxf5 {[%clk 0:01:10]} 30. Qxf5 {[%clk 0:00:28]}  Rxf5 {[%clk 0:01:11]} 31. g4 {[%clk 0:00:29]}  Rf7 {[%clk 0:01:07]} 32. f5 {[%clk 0:00:29]}  Rg5 {[%clk 0:01:05]} 33. Bf4 {[%clk 0:00:30]}  Nb6 {[%clk 0:01:04]} 34. Bxg5 {[%clk 0:00:25]}  hxg5 {[%clk 0:01:05]} 35. Re7 {[%clk 0:00:26]}  Kg8 {[%clk 0:01:01]} 36. Rxf7 {[%clk 0:00:22]}  Kxf7 {[%clk 0:01:02]} 37. Re6 {[%clk 0:00:14]}  Nc4 {[%clk 0:00:58]} 38. a4 {[%clk 0:00:14]}  a5 {[%clk 0:00:59]} 39. bxa5 {[%clk 0:00:13]}  Nxa5 {[%clk 0:00:59]} 40. d5 {[%clk 0:00:13]}  cxd5 {[%clk 0:00:56]} 41. Rd6 {[%clk 0:00:13]}  Ke7 {[%clk 0:00:54]} 42. Rxd5 {[%clk 0:00:14]}  Nc4 {[%clk 0:00:52]} 43. Rb5 {[%clk 0:00:11]}  Nd6 {[%clk 0:00:52]} 44. Re5+ {[%clk 0:00:11]}  Kd7 {[%clk 0:00:52]} 45. Re6 {[%clk 0:00:12]}  Ne8 {[%clk 0:00:36]} 46. Rg6 {[%clk 0:00:12]}  Ke7 {[%clk 0:00:35]} 47. Rxg5 {[%clk 0:00:10]} 1-0


[Site "https://www.chess.com"]

[Event "Titled Tuesday Blitz October 18 Late 2022"]
[White "Hemam, Moulaye Brahim"]
[Black "Antonio, Jorge Carlos"]
[WhiteFideId "19600054"]
[BlackFideId "113190"]
[WhiteElo "2088"]
[BlackElo "2247"]
[Result "1/2-1/2"]
[Round "04"]
[TimeControl "180+1"]
[Date "2022.10.19"]
[WhiteClock "0:01:32"]
[BlackClock "0:01:48"]

1. e4 {[%clk 0:02:59]}  c5 {[%clk 0:02:59]} 2. Nf3 {[%clk 0:02:58]}  e6 {[%clk 0:02:58]} 3. c4 {[%clk 0:02:57]}  Nc6 {[%clk 0:02:57]} 4. Nc3 {[%clk 0:02:57]}  a6 {[%clk 0:02:56]} 5. d3 {[%clk 0:02:52]}  g6 {[%clk 0:02:55]} 6. Be3 {[%clk 0:02:51]}  Bg7 {[%clk 0:02:54]} 7. Bxc5 {[%clk 0:02:46]}  Nf6 {[%clk 0:02:53]} 8. Be3 {[%clk 0:02:44]}  O-O {[%clk 0:02:51]} 9. h3 {[%clk 0:02:42]}  d5 {[%clk 0:02:49]} 10. cxd5 {[%clk 0:02:41]}  exd5 {[%clk 0:02:49]} 11. exd5 {[%clk 0:02:33]}  Nxd5 {[%clk 0:02:48]} 12. Nxd5 {[%clk 0:02:33]}  Qxd5 {[%clk 0:02:47]} 13. Qd2 {[%clk 0:02:33]}  Bf5 {[%clk 0:02:38]} 14. Be2 {[%clk 0:02:31]}  Rad8 {[%clk 0:02:27]} 15. d4 {[%clk 0:02:22]}  Nxd4 {[%clk 0:02:22]} 16. Nxd4 {[%clk 0:02:21]}  Bxd4 {[%clk 0:02:21]} 17. Bxd4 {[%clk 0:02:20]}  Qxd4 {[%clk 0:02:20]} 18. Qxd4 {[%clk 0:02:20]}  Rxd4 {[%clk 0:02:19]} 19. Rd1 {[%clk 0:02:19]}  Re4 {[%clk 0:02:14]} 20. Kf1 {[%clk 0:02:16]}  Rfe8 {[%clk 0:02:12]} 21. Bd3 {[%clk 0:02:06]}  R4e5 {[%clk 0:02:11]} 22. Bxf5 {[%clk 0:02:06]}  Rxf5 {[%clk 0:02:11]} 23. g3 {[%clk 0:01:54]}  Rc8 {[%clk 0:02:09]} 24. Rd2 {[%clk 0:01:44]}  Rfc5 {[%clk 0:01:55]} 25. Kg2 {[%clk 0:01:43]}  Rc2 {[%clk 0:01:55]} 26. Rhd1 {[%clk 0:01:38]}  Kg7 {[%clk 0:01:54]} 27. Kf3 {[%clk 0:01:34]}  Rxd2 {[%clk 0:01:52]} 28. Rxd2 {[%clk 0:01:32]}  h5 {[%clk 0:01:48]} 1/2-1/2


[Site "https://www.chess.com"]

[Event "Titled Tuesday Blitz October 18 Late 2022"]
[White "Ismayil, Malak"]
[Black "Hirneise, Jens"]
[WhiteFideId "13412604"]
[BlackFideId "24614734"]
[WhiteElo "1879"]
[BlackElo "2344"]
[Result "0-1"]
[Round "04"]
[TimeControl "180+1"]
[Date "2022.10.19"]
[WhiteClock "0:00:01"]
[BlackClock "0:00:06"]

1. e4 {[%clk 0:03:00]}  c5 {[%clk 0:02:59]} 2. Nf3 {[%clk 0:03:00]}  d6 {[%clk 0:02:57]} 3. Bb5+ {[%clk 0:02:58]}  Nd7 {[%clk 0:02:56]} 4. O-O {[%clk 0:02:55]}  Nf6 {[%clk 0:02:50]} 5. Re1 {[%clk 0:02:54]}  e6 {[%clk 0:02:45]} 6. d4 {[%clk 0:02:53]}  cxd4 {[%clk 0:02:43]} 7. Nxd4 {[%clk 0:02:54]}  Be7 {[%clk 0:02:41]} 8. c4 {[%clk 0:02:53]}  O-O {[%clk 0:02:38]} 9. Bxd7 {[%clk 0:02:52]}  Bxd7 {[%clk 0:02:36]} 10. Nc3 {[%clk 0:02:53]}  a6 {[%clk 0:02:34]} 11. b3 {[%clk 0:02:52]}  Qa5 {[%clk 0:02:29]} 12. Bb2 {[%clk 0:02:49]}  b5 {[%clk 0:02:27]} 13. Qd3 {[%clk 0:02:32]}  bxc4 {[%clk 0:02:25]} 14. Qxc4 {[%clk 0:02:33]}  Rfc8 {[%clk 0:02:23]} 15. Qd3 {[%clk 0:02:32]}  Ng4 {[%clk 0:02:10]} 16. h3 {[%clk 0:02:31]}  Ne5 {[%clk 0:02:06]} 17. Qd2 {[%clk 0:02:32]}  Nc6 {[%clk 0:01:58]} 18. Nxc6 {[%clk 0:02:08]}  Bxc6 {[%clk 0:01:59]} 19. Rad1 {[%clk 0:01:58]}  Qd8 {[%clk 0:01:48]} 20. Ba3 {[%clk 0:01:33]}  Qa5 {[%clk 0:01:40]} 21. Nb1 {[%clk 0:01:11]}  Qh5 {[%clk 0:01:10]} 22. Bxd6 {[%clk 0:00:38]}  Rd8 {[%clk 0:01:10]} 23. e5 {[%clk 0:00:38]}  Qg6 {[%clk 0:01:07]} 24. f4 {[%clk 0:00:38]}  Bxd6 {[%clk 0:01:01]} 25. exd6 {[%clk 0:00:38]}  Rxd6 {[%clk 0:01:01]} 26. Qf2 {[%clk 0:00:37]}  Rd3 {[%clk 0:00:39]} 27. Rxd3 {[%clk 0:00:29]}  Qxd3 {[%clk 0:00:40]} 28. Qd2 {[%clk 0:00:27]}  Qxd2 {[%clk 0:00:23]} 29. Nxd2 {[%clk 0:00:28]}  Bd5 {[%clk 0:00:23]} 30. Rc1 {[%clk 0:00:27]}  a5 {[%clk 0:00:22]} 31. Rc2 {[%clk 0:00:24]}  h6 {[%clk 0:00:20]} 32. Kf2 {[%clk 0:00:24]}  g5 {[%clk 0:00:21]} 33. g3 {[%clk 0:00:21]}  gxf4 {[%clk 0:00:20]} 34. gxf4 {[%clk 0:00:22]}  Kg7 {[%clk 0:00:21]} 35. Ke3 {[%clk 0:00:22]}  Kf6 {[%clk 0:00:21]} 36. Nf3 {[%clk 0:00:22]}  a4 {[%clk 0:00:20]} 37. b4 {[%clk 0:00:21]}  a3 {[%clk 0:00:20]} 38. Ne5 {[%clk 0:00:19]}  Ra4 {[%clk 0:00:17]} 39. Nd3 {[%clk 0:00:18]}  Ra8 {[%clk 0:00:13]} 40. Kd4 {[%clk 0:00:16]}  Kf5 {[%clk 0:00:12]} 41. Ke3 {[%clk 0:00:05]}  Rb8 {[%clk 0:00:08]} 42. Kd4 {[%clk 0:00:05]}  f6 {[%clk 0:00:06]} 43. Rf2 {[%clk 0:00:02]}  Rc8 {[%clk 0:00:06]} 44. Rd2 {[%clk 0:00:02]}  Rc4+ {[%clk 0:00:05]} 45. Ke3 {[%clk 0:00:02]}  Rc3 {[%clk 0:00:04]} 46. Kd4 {[%clk 0:00:02]}  Rc4+ {[%clk 0:00:05]} 47. Ke3 {[%clk 0:00:03]}  Re4+ {[%clk 0:00:06]} 48. Kf2 {[%clk 0:00:03]}  h5 {[%clk 0:00:06]} 49. Rc2 {[%clk 0:00:02]}  h4 {[%clk 0:00:07]} 50. b5 {[%clk 0:00:01]}  Rd4 {[%clk 0:00:06]} 51. Nc5 {[%clk 0:00:01]}  Rb4 {[%clk 0:00:06]} 52. Nd7 {[%clk 0:00:01]}  Rxb5 {[%clk 0:00:06]} 53. Rd2 {[%clk 0:00:01]}  Rb2 {[%clk 0:00:06]} 0-1


[Site "https://www.chess.com"]

[Event "Titled Tuesday Blitz October 18 Late 2022"]
[White "Itkis, Boris"]
[Black "Martin Carmona, Gaston Manuel"]
[WhiteFideId "1209167"]
[BlackFideId "22284567"]
[WhiteElo "2232"]
[BlackElo "2235"]
[Result "1-0"]
[Round "04"]
[TimeControl "180+1"]
[Date "2022.10.19"]
[WhiteClock "0:00:11"]
[BlackClock "0:00:20"]

1. c4 {[%clk 0:03:00]}  Nf6 {[%clk 0:02:59]} 2. Nf3 {[%clk 0:02:58]}  g6 {[%clk 0:03:00]} 3. g3 {[%clk 0:02:58]}  Bg7 {[%clk 0:03:01]} 4. Bg2 {[%clk 0:02:59]}  O-O {[%clk 0:03:02]} 5. d4 {[%clk 0:02:59]}  d5 {[%clk 0:03:01]} 6. cxd5 {[%clk 0:02:59]}  Nxd5 {[%clk 0:03:02]} 7. O-O {[%clk 0:02:58]}  Nc6 {[%clk 0:03:01]} 8. Nc3 {[%clk 0:02:46]}  Nb6 {[%clk 0:02:59]} 9. e3 {[%clk 0:02:45]}  a5 {[%clk 0:02:57]} 10. a3 {[%clk 0:02:35]}  Re8 {[%clk 0:02:53]} 11. Qc2 {[%clk 0:02:34]}  Bf5 {[%clk 0:02:51]} 12. e4 {[%clk 0:02:19]}  Bg4 {[%clk 0:02:49]} 13. d5 {[%clk 0:02:19]}  Bxf3 {[%clk 0:02:48]} 14. Bxf3 {[%clk 0:02:15]}  Nd4 {[%clk 0:02:49]} 15. Qd1 {[%clk 0:02:16]}  Nxf3+ {[%clk 0:02:27]} 16. Qxf3 {[%clk 0:02:17]}  e6 {[%clk 0:02:27]} 17. Be3 {[%clk 0:01:54]}  Nc4 {[%clk 0:02:26]} 18. Rad1 {[%clk 0:01:48]}  Nxb2 {[%clk 0:02:25]} 19. dxe6 {[%clk 0:01:48]}  Qf6 {[%clk 0:02:07]} 20. exf7+ {[%clk 0:01:46]}  Qxf7 {[%clk 0:02:07]} 21. Qxf7+ {[%clk 0:01:46]}  Kxf7 {[%clk 0:02:08]} 22. Rd7+ {[%clk 0:01:46]}  Re7 {[%clk 0:02:08]} 23. Rxe7+ {[%clk 0:01:42]}  Kxe7 {[%clk 0:02:09]} 24. Nd5+ {[%clk 0:01:42]}  Kd7 {[%clk 0:02:07]} 25. Rc1 {[%clk 0:01:34]}  Rc8 {[%clk 0:01:55]} 26. Bf4 {[%clk 0:01:26]}  Bf8 {[%clk 0:01:42]} 27. Bxc7 {[%clk 0:01:12]}  Ke6 {[%clk 0:01:29]} 28. Rc3 {[%clk 0:00:56]}  Na4 {[%clk 0:01:22]} 29. Rf3 {[%clk 0:00:51]}  Bg7 {[%clk 0:01:10]} 30. Rb3 {[%clk 0:00:42]}  Nc5 {[%clk 0:01:07]} 31. Rb6+ {[%clk 0:00:41]}  Kd7 {[%clk 0:01:07]} 32. Rd6+ {[%clk 0:00:40]}  Ke8 {[%clk 0:01:05]} 33. Bxa5 {[%clk 0:00:23]}  Be5 {[%clk 0:01:01]} 34. Rb6 {[%clk 0:00:22]}  Kf7 {[%clk 0:00:53]} 35. Bc3 {[%clk 0:00:18]}  Bxc3 {[%clk 0:00:35]} 36. Nxc3 {[%clk 0:00:19]}  Rc7 {[%clk 0:00:32]} 37. Nd5 {[%clk 0:00:18]}  Rd7 {[%clk 0:00:33]} 38. Rf6+ {[%clk 0:00:18]}  Kg7 {[%clk 0:00:33]} 39. Rf4 {[%clk 0:00:17]}  Ne6 {[%clk 0:00:30]} 40. Rf3 {[%clk 0:00:16]}  Nd4 {[%clk 0:00:30]} 41. Rd3 {[%clk 0:00:16]}  Nc2 {[%clk 0:00:28]} 42. f4 {[%clk 0:00:15]}  b5 {[%clk 0:00:26]} 43. Kf1 {[%clk 0:00:14]}  Ra7 {[%clk 0:00:26]} 44. Rb3 {[%clk 0:00:11]}  Nxa3 {[%clk 0:00:25]} 45. Nc3 {[%clk 0:00:12]}  Ra4 {[%clk 0:00:20]} 46. Nxa4 {[%clk 0:00:11]} 1-0


[Site "https://www.chess.com"]

[Event "Titled Tuesday Blitz October 18 Late 2022"]
[White "Izuzquiza Gonzalez, Javier"]
[Black "Floresvillar Gonzalez, Luis Migu"]
[WhiteFideId "3101029"]
[BlackFideId "5100542"]
[WhiteElo "2034"]
[BlackElo "2040"]
[Result "0-1"]
[Round "04"]
[TimeControl "180+1"]
[Date "2022.10.19"]
[WhiteClock "0:00:20"]
[BlackClock "0:00:34"]

1. d4 {[%clk 0:02:54]}  e6 {[%clk 0:02:59]} 2. c4 {[%clk 0:02:53]}  d5 {[%clk 0:02:58]} 3. Nf3 {[%clk 0:02:53]}  Bb4+ {[%clk 0:02:55]} 4. Bd2 {[%clk 0:02:52]}  Bxd2+ {[%clk 0:02:54]} 5. Nbxd2 {[%clk 0:02:51]}  Nf6 {[%clk 0:02:52]} 6. g3 {[%clk 0:02:52]}  O-O {[%clk 0:02:48]} 7. Bg2 {[%clk 0:02:52]}  c6 {[%clk 0:02:48]} 8. O-O {[%clk 0:02:52]}  Nbd7 {[%clk 0:02:47]} 9. Qc2 {[%clk 0:02:52]}  Re8 {[%clk 0:02:47]} 10. Rad1 {[%clk 0:02:50]}  e5 {[%clk 0:02:45]} 11. e4 {[%clk 0:02:49]}  dxe4 {[%clk 0:02:41]} 12. Nxe4 {[%clk 0:02:46]}  Nxe4 {[%clk 0:02:41]} 13. Qxe4 {[%clk 0:02:46]}  exd4 {[%clk 0:02:34]} 14. Qxd4 {[%clk 0:02:46]}  Qf6 {[%clk 0:02:33]} 15. Qd2 {[%clk 0:02:33]}  Nb6 {[%clk 0:02:32]} 16. b3 {[%clk 0:02:27]}  Bg4 {[%clk 0:02:31]} 17. c5 {[%clk 0:01:31]}  Rad8 {[%clk 0:02:23]} 18. Qc2 {[%clk 0:01:24]}  Rxd1 {[%clk 0:02:20]} 19. Qxd1 {[%clk 0:01:21]}  Nd5 {[%clk 0:02:02]} 20. h3 {[%clk 0:01:18]}  Bh5 {[%clk 0:02:01]} 21. g4 {[%clk 0:01:17]}  Bg6 {[%clk 0:02:01]} 22. Re1 {[%clk 0:01:13]}  Rxe1+ {[%clk 0:01:56]} 23. Qxe1 {[%clk 0:01:14]}  h6 {[%clk 0:01:56]} 24. Qa5 {[%clk 0:01:12]}  a6 {[%clk 0:01:51]} 25. Qe1 {[%clk 0:01:13]}  Nf4 {[%clk 0:01:50]} 26. Qe8+ {[%clk 0:01:09]}  Kh7 {[%clk 0:01:49]} 27. Ne5 {[%clk 0:01:04]}  Nxg2 {[%clk 0:01:42]} 28. Kxg2 {[%clk 0:01:04]}  h5 {[%clk 0:01:31]} 29. Nxg6 {[%clk 0:01:01]}  Qxg6 {[%clk 0:01:30]} 30. Qd7 {[%clk 0:00:56]}  hxg4 {[%clk 0:01:29]} 31. Qxg4 {[%clk 0:00:52]}  Kh6 {[%clk 0:01:19]} 32. Kg3 {[%clk 0:00:50]}  Qg5 {[%clk 0:01:07]} 33. b4 {[%clk 0:00:34]}  f5 {[%clk 0:01:02]} 34. Qxg5+ {[%clk 0:00:31]}  Kxg5 {[%clk 0:01:02]} 35. f4+ {[%clk 0:00:31]}  Kf6 {[%clk 0:01:00]} 36. Kf3 {[%clk 0:00:30]}  Ke6 {[%clk 0:01:00]} 37. Ke3 {[%clk 0:00:29]}  Kd5 {[%clk 0:00:59]} 38. Kd3 {[%clk 0:00:30]}  a5 {[%clk 0:00:58]} 39. a3 {[%clk 0:00:29]}  a4 {[%clk 0:00:48]} 40. h4 {[%clk 0:00:21]}  g6 {[%clk 0:00:48]} 41. Kc3 {[%clk 0:00:20]}  Ke4 {[%clk 0:00:47]} 42. Kc4 {[%clk 0:00:19]}  Kxf4 {[%clk 0:00:47]} 43. b5 {[%clk 0:00:20]}  Kg3 {[%clk 0:00:39]} 44. h5 {[%clk 0:00:20]}  gxh5 {[%clk 0:00:38]} 45. Kb4 {[%clk 0:00:20]}  h4 {[%clk 0:00:34]} 0-1


[Site "https://www.chess.com"]

[Event "Titled Tuesday Blitz October 18 Late 2022"]
[White "Jaferian, Koosha"]
[Black "Pultinevicius, Paulius"]
[WhiteFideId "12507440"]
[BlackFideId "12809390"]
[WhiteElo "2127"]
[BlackElo "2500"]
[Result "0-1"]
[Round "04"]
[TimeControl "180+1"]
[Date "2022.10.18"]
[WhiteClock "0:00:03"]
[BlackClock "0:00:22"]

1. e4 {[%clk 0:03:00]}  c5 {[%clk 0:02:58]} 2. Nc3 {[%clk 0:03:01]}  e6 {[%clk 0:02:58]} 3. f4 {[%clk 0:03:01]}  d5 {[%clk 0:02:56]} 4. Nf3 {[%clk 0:03:01]}  dxe4 {[%clk 0:02:55]} 5. Nxe4 {[%clk 0:03:01]}  Nf6 {[%clk 0:02:53]} 6. Nxf6+ {[%clk 0:03:01]}  Qxf6 {[%clk 0:02:53]} 7. g3 {[%clk 0:03:02]}  Nc6 {[%clk 0:02:43]} 8. Bg2 {[%clk 0:03:03]}  Bd6 {[%clk 0:02:42]} 9. O-O {[%clk 0:03:03]}  O-O {[%clk 0:02:43]} 10. d3 {[%clk 0:03:04]}  Rb8 {[%clk 0:02:34]} 11. a4 {[%clk 0:03:02]}  b6 {[%clk 0:02:34]} 12. Nd2 {[%clk 0:03:02]}  Bb7 {[%clk 0:02:33]} 13. Nc4 {[%clk 0:02:50]}  Bc7 {[%clk 0:02:31]} 14. Be3 {[%clk 0:02:49]}  Rfd8 {[%clk 0:02:28]} 15. Qe1 {[%clk 0:02:44]}  Nb4 {[%clk 0:02:26]} 16. Qf2 {[%clk 0:02:37]}  Ba6 {[%clk 0:02:21]} 17. b3 {[%clk 0:02:11]}  Nd5 {[%clk 0:02:10]} 18. Bd2 {[%clk 0:02:05]}  Bb7 {[%clk 0:02:09]} 19. Rae1 {[%clk 0:02:05]}  a6 {[%clk 0:02:09]} 20. Ne5 {[%clk 0:02:01]}  Bd6 {[%clk 0:02:05]} 21. Nc4 {[%clk 0:01:51]}  Bf8 {[%clk 0:02:02]} 22. Ne5 {[%clk 0:01:51]}  Ba8 {[%clk 0:01:49]} 23. f5 {[%clk 0:01:33]}  exf5 {[%clk 0:01:44]} 24. Qxf5 {[%clk 0:01:34]}  Qxf5 {[%clk 0:01:42]} 25. Rxf5 {[%clk 0:01:35]}  f6 {[%clk 0:01:34]} 26. Nc4 {[%clk 0:01:25]}  b5 {[%clk 0:01:32]} 27. axb5 {[%clk 0:01:25]}  axb5 {[%clk 0:01:31]} 28. Ne3 {[%clk 0:01:25]}  Nb4 {[%clk 0:01:25]} 29. Bxa8 {[%clk 0:01:19]}  Rxa8 {[%clk 0:01:24]} 30. Bxb4 {[%clk 0:01:20]}  cxb4 {[%clk 0:01:24]} 31. Rxb5 {[%clk 0:01:21]}  Rdc8 {[%clk 0:01:20]} 32. Nc4 {[%clk 0:01:19]}  Ra2 {[%clk 0:01:20]} 33. Re2 {[%clk 0:01:19]}  Rc7 {[%clk 0:01:08]} 34. Rb8 {[%clk 0:01:10]}  Kf7 {[%clk 0:01:08]} 35. Kg2 {[%clk 0:01:07]}  Bc5 {[%clk 0:00:58]} 36. Rb5 {[%clk 0:00:46]}  h5 {[%clk 0:00:55]} 37. d4 {[%clk 0:00:37]}  Bxd4 {[%clk 0:00:53]} 38. Rxb4 {[%clk 0:00:38]}  Bc5 {[%clk 0:00:48]} 39. Rb5 {[%clk 0:00:38]}  g5 {[%clk 0:00:48]} 40. Ra5 {[%clk 0:00:23]}  Rxa5 {[%clk 0:00:45]} 41. Nxa5 {[%clk 0:00:24]}  g4 {[%clk 0:00:45]} 42. Nc4 {[%clk 0:00:23]}  Ra7 {[%clk 0:00:43]} 43. h3 {[%clk 0:00:18]}  Kg6 {[%clk 0:00:43]} 44. hxg4 {[%clk 0:00:18]}  hxg4 {[%clk 0:00:44]} 45. Re4 {[%clk 0:00:15]}  Kf5 {[%clk 0:00:39]} 46. Rf4+ {[%clk 0:00:15]}  Kg5 {[%clk 0:00:39]} 47. Re4 {[%clk 0:00:12]}  f5 {[%clk 0:00:39]} 48. Re8 {[%clk 0:00:10]}  Ra2 {[%clk 0:00:37]} 49. Rg8+ {[%clk 0:00:11]}  Kf6 {[%clk 0:00:38]} 50. Rc8 {[%clk 0:00:09]}  Rxc2+ {[%clk 0:00:36]} 51. Kf1 {[%clk 0:00:10]}  Bd4 {[%clk 0:00:34]} 52. Rc6+ {[%clk 0:00:10]}  Kg5 {[%clk 0:00:35]} 53. Rc8 {[%clk 0:00:09]}  Rc3 {[%clk 0:00:34]} 54. Nd6 {[%clk 0:00:06]}  Rxg3 {[%clk 0:00:25]} 55. Rg8+ {[%clk 0:00:04]}  Kf4 {[%clk 0:00:25]} 56. Rf8 {[%clk 0:00:05]}  Rf3+ {[%clk 0:00:23]} 57. Kg2 {[%clk 0:00:04]}  Rf2+ {[%clk 0:00:22]} 58. Kh1 {[%clk 0:00:04]}  Ke5 {[%clk 0:00:22]} 59. Nc4+ {[%clk 0:00:01]}  Ke4 {[%clk 0:00:23]} 60. Nd6+ {[%clk 0:00:02]}  Ke5 {[%clk 0:00:22]} 61. Nc4+ {[%clk 0:00:02]}  Kd5 {[%clk 0:00:23]} 62. Rd8+ {[%clk 0:00:02]}  Ke4 {[%clk 0:00:23]} 63. Re8+ {[%clk 0:00:02]}  Kf3 {[%clk 0:00:22]} 64. Rf8 {[%clk 0:00:02]}  Rf1+ {[%clk 0:00:20]} 65. Kh2 {[%clk 0:00:03]}  g3+ {[%clk 0:00:21]} 66. Kh3 {[%clk 0:00:03]}  Rh1# {[%clk 0:00:22]} 0-1


[Site "https://www.chess.com"]

[Event "Titled Tuesday Blitz October 18 Late 2022"]
[White "Jean Louis, Marckens"]
[Black "Mohammadian, Mohammad"]
[WhiteFideId "11900270"]
[BlackFideId "12566055"]
[WhiteElo "2030"]
[BlackElo "1489"]
[Result "1-0"]
[Round "04"]
[TimeControl "180+1"]
[Date "2022.10.19"]
[WhiteClock "0:02:10"]
[BlackClock "0:00:36"]

1. d4 {[%clk 0:03:00]}  Nf6 {[%clk 0:02:58]} 2. Nf3 {[%clk 0:02:59]}  g6 {[%clk 0:02:58]} 3. c4 {[%clk 0:02:58]}  Bg7 {[%clk 0:02:57]} 4. Nc3 {[%clk 0:02:58]}  d5 {[%clk 0:02:57]} 5. cxd5 {[%clk 0:02:59]}  Nxd5 {[%clk 0:02:56]} 6. e4 {[%clk 0:03:00]}  Nxc3 {[%clk 0:02:56]} 7. bxc3 {[%clk 0:03:01]}  O-O {[%clk 0:02:55]} 8. Be2 {[%clk 0:03:02]}  c5 {[%clk 0:02:54]} 9. O-O {[%clk 0:03:03]}  Nc6 {[%clk 0:02:52]} 10. Be3 {[%clk 0:03:02]}  cxd4 {[%clk 0:02:51]} 11. cxd4 {[%clk 0:03:03]}  e6 {[%clk 0:02:51]} 12. d5 {[%clk 0:03:02]}  exd5 {[%clk 0:02:50]} 13. exd5 {[%clk 0:03:02]}  Ne5 {[%clk 0:02:49]} 14. Nxe5 {[%clk 0:03:01]}  Bxe5 {[%clk 0:02:48]} 15. Bf3 {[%clk 0:03:02]}  Bxa1 {[%clk 0:02:41]} 16. Qxa1 {[%clk 0:03:00]}  f6 {[%clk 0:02:35]} 17. Rd1 {[%clk 0:03:00]}  Kg7 {[%clk 0:02:34]} 18. d6 {[%clk 0:02:49]}  Qd7 {[%clk 0:02:25]} 19. h3 {[%clk 0:02:46]}  h6 {[%clk 0:02:17]} 20. a4 {[%clk 0:02:43]}  Qf5 {[%clk 0:02:10]} 21. d7 {[%clk 0:02:35]}  Bxd7 {[%clk 0:01:55]} 22. Bg4 {[%clk 0:02:33]}  Qe5 {[%clk 0:01:46]} 23. Rxd7+ {[%clk 0:02:32]}  Kh8 {[%clk 0:01:39]} 24. Bd4 {[%clk 0:02:27]}  Qf4 {[%clk 0:01:26]} 25. g3 {[%clk 0:02:24]}  Qg5 {[%clk 0:01:20]} 26. f4 {[%clk 0:02:16]}  Qa5 {[%clk 0:00:57]} 27. Bxf6+ {[%clk 0:02:12]}  Kg8 {[%clk 0:00:36]} 28. Be6+ {[%clk 0:02:10]} 1-0


[Site "https://www.chess.com"]

[Event "Titled Tuesday Blitz October 18 Late 2022"]
[White "Jimenez Fernandez, Rebeca"]
[Black "Harish, Neeraj"]
[WhiteFideId "32070934"]
[BlackFideId "30958130"]
[WhiteElo "1946"]
[BlackElo "1815"]
[Result "1-0"]
[Round "04"]
[TimeControl "180+1"]
[Date "2022.10.19"]
[WhiteClock "0:01:04"]
[BlackClock "0:00:10"]

1. e4 {[%clk 0:03:00]}  c5 {[%clk 0:02:53]} 2. Nc3 {[%clk 0:03:00]}  Nc6 {[%clk 0:02:50]} 3. g3 {[%clk 0:03:00]}  g6 {[%clk 0:02:49]} 4. Bg2 {[%clk 0:03:01]}  Bg7 {[%clk 0:02:49]} 5. d3 {[%clk 0:03:02]}  d6 {[%clk 0:02:50]} 6. Be3 {[%clk 0:03:02]}  e5 {[%clk 0:02:46]} 7. Qd2 {[%clk 0:03:02]}  h6 {[%clk 0:02:45]} 8. f4 {[%clk 0:02:59]}  Nge7 {[%clk 0:02:42]} 9. Nf3 {[%clk 0:02:57]}  Be6 {[%clk 0:02:14]} 10. O-O {[%clk 0:02:55]}  exf4 {[%clk 0:02:10]} 11. Bxf4 {[%clk 0:02:53]}  Qd7 {[%clk 0:02:09]} 12. Rae1 {[%clk 0:02:38]}  Nd4 {[%clk 0:01:49]} 13. Nd5 {[%clk 0:02:27]}  O-O-O {[%clk 0:01:41]} 14. Qa5 {[%clk 0:02:19]}  Ndc6 {[%clk 0:01:34]} 15. Nxe7+ {[%clk 0:01:54]}  Qxe7 {[%clk 0:01:32]} 16. Qa3 {[%clk 0:01:52]}  g5 {[%clk 0:01:29]} 17. Be3 {[%clk 0:01:42]}  Kb8 {[%clk 0:01:24]} 18. e5 {[%clk 0:01:35]}  dxe5 {[%clk 0:00:47]} 19. Bxc5 {[%clk 0:01:34]}  Qc7 {[%clk 0:00:40]} 20. Nd2 {[%clk 0:01:17]}  Bd5 {[%clk 0:00:27]} 21. Ne4 {[%clk 0:01:10]}  Bxe4 {[%clk 0:00:15]} 22. Bxe4 {[%clk 0:01:11]}  Nd4 {[%clk 0:00:14]} 23. Qxa7+ {[%clk 0:01:09]}  Kc8 {[%clk 0:00:13]} 24. Bb6 {[%clk 0:01:07]}  Qb8 {[%clk 0:00:09]} 25. Qxb8+ {[%clk 0:01:04]}  Kxb8 {[%clk 0:00:10]} 26. Bxd8 {[%clk 0:01:04]} 1-0


[Site "https://www.chess.com"]